bitfinex/quotes_SOLUSD_20250726
["timestamp","ask_amount","ask_price","bid_price","bid_amount"]
[1753504670471,0.03,186.28,186.27,150.00771515]
[1753504676177,0.03,186.28,186.27,150.29203829]
[1753504678987,1e-08,186.28,186.27,150.29203829]
[1753504683900,1e-08,186.28,186.27,147.87755813]
[1753504684088,0.70000001,186.28,186.27,109.61323499]
[1753504684387,0.70000001,186.28,186.27,146.93323499]
[1753504688590,1e-08,186.28,186.27,146.93323499]
[1753504688793,1e-08,186.28,186.27,150.03771515]
[1753504690301,1e-08,186.28,186.27,149.34771515]
[1753504692401,1e-08,186.28,186.27,150.03771515]
[1753504692568,1e-08,186.28,186.27,150.32203829]
[1753504696176,1e-08,186.28,186.27,149.63203829]
[1753504697488,1e-08,186.28,186.27,150.32203829]
[1753504703906,1e-08,186.28,186.27,149.63203829]
[1753504704694,1e-08,186.28,186.27,150.32203829]
[1753504705507,1e-08,186.28,186.27,149.63203829]
[1753504706213,1e-08,186.28,186.27,150.32203829]
[1753504709210,0.66000001,186.28,186.27,112.31203829]
[1753504709395,0.66000001,186.28,186.27,146.93323499]
[1753504709991,1e-08,186.28,186.27,146.93323499]
[1753504711598,0.66000001,186.28,186.27,146.93323499]
[1753504713623,1e-08,186.28,186.27,149.34771515]
[1753504713919,1e-08,186.28,186.27,150.03771515]
[1753504721628,1e-08,186.28,186.27,112.69771515]
[1753504721932,1e-08,186.28,186.27,150.01771515]
[1753504728220,1e-08,186.28,186.27,150.30203829]
[1753504749861,0.03,186.32,186.31,16.78468397]
[1753504750059,0.03,186.32,186.31,144.74022711]
[1753504750240,0.03,186.32,186.31,144.92348727]
[1753504751159,0.03,186.32,186.31,150.29088569]
[1753504751393,0.72,186.32,186.31,146.87208239]
[1753504752442,0.72,186.32,186.31,59.47208239]
[1753504756587,0.03,186.32,186.31,59.47208239]
[1753504759053,0.03,186.32,186.31,62.60656255]
[1753504762176,0.03,186.32,186.31,150.29088569]
[1753504762689,0.03,186.32,186.31,149.28656255]
[1753504762690,0.72,186.32,186.31,149.28656255]
[1753504763691,0.03,186.32,186.31,149.28656255]
[1753504767892,0.03,186.32,186.31,150.00656255]
[1753504768283,0.03,186.32,186.31,149.28656255]
[1753504772397,0.03,186.32,186.31,150.00656255]
[1753504774978,0.03,186.32,186.31,149.28656255]
[1753504776404,0.03,186.32,186.31,150.00656255]
[1753504776903,0.03,186.32,186.31,149.28656255]
[1753504777799,0.03,186.32,186.31,150.00656255]
[1753504780093,0.03,186.32,186.31,150.29088569]
[1753504780902,0.03,186.36,186.31,189.70938174]
[1753504781121,0.03,186.36,186.35,19.19916413]
[1753504781303,0.03,186.36,186.35,144.19916413]
[1753504781496,0.03,186.36,186.35,144.91916413]
[1753504783092,0.03,186.36,186.35,150.28541044]
[1753504785714,0.03,186.36,186.35,149.56541044]
[1753504787418,0.69,186.36,186.35,147.15093028]
[1753504788413,0.69,186.36,186.35,141.78468397]
[1753504788589,0.69,186.36,186.35,147.15093028]
[1753504789316,0.03,186.36,186.35,150.28541044]
[1753504790315,0.03,186.36,186.31,26.0]
[1753504790506,0.69,186.36,186.33,16.78468397]
[1753504790703,0.69,186.36,186.34,37.54]
[1753504791119,0.03,186.36,186.34,38.26]
[1753504791501,0.03,186.36,186.34,42.90648204]
[1753504791902,0.69,186.36,186.34,42.90648204]
[1753504792506,0.66,186.35,186.34,54.32468397]
[1753504792701,0.66,186.35,186.34,37.54]
[1753504797316,0.03,186.36,186.34,37.54]
[1753504797822,0.69,186.36,186.34,37.54]
[1753504798019,0.03,186.36,186.34,37.54]
[1753504798412,0.03,186.36,186.34,42.90650468]
[1753504798927,0.03,186.36,186.34,37.54]
[1753504802030,0.03,186.36,186.34,42.90648854]
[1753504802414,0.03,186.36,186.34,37.54]
[1753504804125,0.03,186.36,186.34,38.26]
[1753504804333,0.03,186.36,186.34,37.54]
[1753504804820,0.69,186.36,186.34,37.54]
[1753504805408,0.03,186.36,186.34,37.54]
[1753504808829,0.03,186.36,186.34,38.23]
[1753504809225,0.03,186.36,186.34,43.59652118]
[1753504809442,0.03,186.36,186.35,0.69]
[1753504813443,0.03,186.36,186.34,42.90652118]
[1753504813645,0.03,186.36,186.34,43.59652118]
[1753504814944,0.03,186.36,186.35,0.69]
[1753504815546,0.03,186.36,186.34,43.59652118]
[1753504816847,0.03,186.36,186.34,42.90652118]
[1753504817049,0.74,186.36,186.34,37.54]
[1753504817356,0.03,186.36,186.34,37.54]
[1753504817671,0.03,186.36,186.34,38.23]
[1753504817857,0.03,186.36,186.35,0.69]
[1753504818270,0.03,186.36,186.34,37.54]
[1753504818573,0.03,186.36,186.34,38.23]
[1753504822276,0.03,186.36,186.34,37.54]
[1753504822458,0.03,186.36,186.35,0.69]
[1753504823691,0.03,186.36,186.34,38.23]
[1753504825085,0.03,186.36,186.34,37.54]
[1753504825877,0.74,186.36,186.34,37.54]
[1753504826891,3.15448016,186.36,186.34,37.54]
[1753504828592,2.41448016,186.35,186.34,37.54]
[1753504830590,3.15448016,186.36,186.34,37.54]
[1753504830893,2.44448016,186.36,186.34,37.54]
[1753504831279,2.44448016,186.36,186.34,38.23]
[1753504832384,2.41448016,186.35,186.34,37.54]
[1753504832597,0.03,186.36,186.34,37.54]
[1753504832802,2.44448016,186.36,186.34,38.23]
[1753504836611,2.41448016,186.35,186.34,37.54]
[1753504838619,8.50074359,186.35,186.32,0.06]
[1753504838816,4.7422122,186.34,186.33,37.4]
[1753504839188,4.74067706,186.34,186.32,0.06]
[1753504839390,0.72,186.33,186.32,0.06]
[1753504839912,3.13448016,186.33,186.32,0.06]
[1753504840516,33.15515722,186.33,186.32,0.06]
[1753504840722,42.282117,186.33,186.32,0.06]
[1753504841509,38.66414109,186.33,186.32,0.06]
[1753504842224,38.80630266,186.33,186.32,0.06]
[1753504842895,26.28432314,186.3,186.28,0.06]
[1753504843224,6.71193744,186.29,186.28,0.06]
[1753504843426,7.43193744,186.29,186.28,0.06]
[1753504843606,3.4188033,186.29,186.28,0.06]
[1753504844201,28.41448016,186.29,186.28,0.06]
[1753504844799,34.50245482,186.29,186.28,0.06]
[1753504846324,33.78245482,186.29,186.28,0.06]
[1753504847131,34.50245482,186.29,186.28,0.06]
[1753504847631,33.78245482,186.29,186.28,0.06]
[1753504853532,28.41448016,186.29,186.28,0.73]
[1753504854920,28.41448016,186.29,186.28,0.06]
[1753504856446,28.41448016,186.29,186.28,0.73]
[1753504857032,28.41448016,186.29,186.28,0.06]
[1753504864448,2.41448016,186.29,186.28,0.73]
[1753504864648,28.41448016,186.29,186.28,0.73]
[1753504864844,2.41448016,186.3,186.28,0.73]
[1753504865051,2.41448016,186.33,186.28,0.73]
[1753504865423,2.41448016,186.35,186.29,19.19916413]
[1753504865649,2.44448016,186.36,186.3,3.08448016]
[1753504865853,2.44448016,186.36,186.29,54.16468397]
[1753504865854,28.44448016,186.36,186.31,0.67]
[1753504866150,2.41448016,186.35,186.31,0.67]
[1753504866753,3.77270034,186.35,186.31,0.67]
[1753504868699,3.77270034,186.34,186.31,0.67]
[1753504869174,31.39597658,186.36,186.31,0.67]
[1753504869370,3.77270034,186.34,186.31,0.67]
[1753504870652,3.77270034,186.34,186.32,0.67]
[1753504874771,3.77270034,186.33,186.29,38.05]
[1753504874959,4.45270034,186.33,186.29,38.05]
[1753504875792,4.45270034,186.33,186.3,0.67]
[1753504876356,6.04627202,186.35,186.3,0.67]
[1753504876578,3.77270034,186.34,186.3,0.67]
[1753504880279,6.04627202,186.35,186.3,0.67]
[1753504880280,3.77270034,186.35,186.3,6.03766098]
[1753504880479,3.77270034,186.35,186.31,0.67]
[1753504880688,3.77270034,186.34,186.31,0.67]
[1753504881177,3.77270034,186.34,186.32,0.67]
[1753504883684,3.77270034,186.34,186.31,0.67]
[1753504885303,3.77270034,186.33,186.31,0.67]
[1753504885503,3.77270034,186.33,186.29,38.05]
[1753504885706,4.45270034,186.32,186.29,38.05]
[1753504886807,3.77270034,186.3,186.28,0.06]
[1753504887014,3.77270034,186.29,186.28,0.06]
[1753504887898,0.68,186.3,186.28,0.06]
[1753504888221,3.77270034,186.29,186.28,0.06]
[1753504888387,3.77270034,186.29,186.28,0.73]
[1753504888714,3.77270034,186.29,186.28,0.06]
[1753504889123,32.04734691,186.32,186.28,0.73]
[1753504889417,3.77270034,186.3,186.28,0.73]
[1753504889591,3.77270034,186.3,186.29,0.67]
[1753504889793,3.77270034,186.3,186.28,0.06]
[1753504890016,3.77270034,186.3,186.28,0.73]
[1753504891163,3.77270034,186.3,186.29,0.67]
[1753504892700,3.77270034,186.33,186.29,6.03794503]
[1753504892900,3.77270034,186.33,186.29,5.36794503]
[1753504893115,32.04632697,186.35,186.3,0.67]
[1753504893303,3.77270034,186.33,186.31,0.67]
[1753504895428,3.77270034,186.33,186.29,0.67]
[1753504895627,4.45270034,186.33,186.29,0.67]
[1753504896721,4.45270034,186.33,186.3,0.71]
[1753504898009,3.77270034,186.33,186.3,0.71]
[1753504898528,3.77270034,186.33,186.31,0.71]
[1753504898896,3.77270034,186.34,186.29,5.36794803]
[1753504899096,3.77270034,186.35,186.32,0.71]
[1753504899338,3.77270034,186.35,186.3,37.38]
[1753504899500,3.77270034,186.35,186.31,0.71]
[1753504899897,3.77270034,186.35,186.32,0.71]
[1753504900218,4.48270034,186.35,186.32,0.71]
[1753504900831,3.77270034,186.35,186.32,0.71]
[1753504901032,7.81583904,186.36,186.33,0.71]
[1753504901826,8.52583904,186.36,186.33,0.71]
[1753504903031,13.8917994,186.36,186.33,0.71]
[1753504903221,3.77270034,186.35,186.31,0.71]
[1753504903420,4.48270034,186.35,186.31,0.71]
[1753504904633,3.77270034,186.35,186.3,42.74762874]
[1753504904933,4.48270034,186.34,186.3,38.09]
[1753504905531,4.48270034,186.34,186.31,0.71]
[1753504906444,3.77270034,186.34,186.31,0.71]
[1753504907341,9.84927312,186.34,186.3,37.38]
[1753504907514,4.48270034,186.34,186.3,38.09]
[1753504907909,4.48270034,186.34,186.31,0.71]
[1753504908420,3.77270034,186.34,186.31,0.71]
[1753504910627,4.48270034,186.34,186.31,0.71]
[1753504910828,3.1248122,186.34,186.31,0.71]
[1753504911335,2.4148122,186.34,186.31,0.71]
[1753504913918,2.4148122,186.34,186.31,0.77]
[1753504914119,2.4448122,186.34,186.31,0.77]
[1753504915337,3.1548122,186.34,186.31,0.77]
[1753504915832,2.4448122,186.34,186.31,0.77]
[1753504917545,0.74,186.34,186.31,0.77]
[1753504917729,3.1548122,186.34,186.31,0.77]
[1753504918133,2.4448122,186.34,186.31,0.77]
[1753504918656,2.4448122,186.34,186.32,0.71]
[1753504918842,0.03,186.34,186.32,0.71]
[1753504921930,0.03,186.34,186.32,8.49169686]
[1753504922425,0.03,186.34,186.33,0.71]
[1753504922847,0.03,186.34,186.33,3.1248122]
[1753504923147,0.03,186.34,186.33,8.4916345]
[1753504924044,0.03,186.34,186.33,43.4368223]
[1753504924821,0.03,186.34,186.33,45.8516345]
[1753504925255,0.03,186.34,186.33,43.4368223]
[1753504926844,0.03,186.34,186.33,62.63631847]
[1753504930354,0.03,186.34,186.33,63.1730007]
[1753504933850,0.03,186.34,186.33,60.7581885]
[1753504934153,0.03,186.34,186.33,63.1730007]
[1753504934333,0.03,186.34,186.33,60.22150627]
[1753504934738,0.03,186.34,186.33,54.85468397]
[1753504934964,0.03,186.34,186.33,54.14468397]
[1753504935540,0.03,186.34,186.33,59.51150627]
[1753504936034,0.03,186.34,186.33,60.18150627]
[1753504936865,0.03,186.34,186.33,62.59631847]
[1753504944766,0.03,186.34,186.33,63.1330007]
[1753504944961,0.03,186.34,186.33,63.41732384]
[1753504945159,0.03,186.34,186.33,22.15150627]
[1753504945367,0.71,186.34,186.33,59.51150627]
[1753504948482,0.71,186.34,186.33,37.36]
[1753504954458,0.03,186.34,186.33,37.36]
[1753504955976,0.03,186.34,186.33,43.3868223]
[1753504956567,0.03,186.34,186.33,42.7268223]
[1753504959162,0.03,186.34,186.33,37.36]
[1753504965494,0.03,186.34,186.33,42.7268223]
[1753504965794,0.03,186.34,186.33,43.3868223]
[1753504968679,0.03,186.34,186.33,60.17150627]
[1753504968974,0.03,186.34,186.33,63.1230007]
[1753504971173,0.03,186.34,186.33,63.40732384]
[1753504973291,0.03,186.34,186.33,150.80732384]
[1753504973508,0.03,186.34,186.33,150.27064161]
[1753504974972,0.03,186.34,186.33,149.98631847]
[1753504998323,1e-08,186.34,186.33,150.27064161]
[1753505004320,1e-08,186.34,186.33,150.33064161]
[1753505018232,1e-08,186.34,186.33,112.02631847]
[1753505018436,1e-08,186.34,186.33,149.36631847]
[1753505018617,0.70000001,186.34,186.33,149.36631847]
[1753505021725,1e-08,186.34,186.33,149.36631847]
[1753505032458,1e-08,186.34,186.33,150.04631847]
[1753505032759,1e-08,186.34,186.33,147.63150627]
[1753505032924,1e-08,186.34,186.33,150.04631847]
[1753505041866,1e-08,186.34,186.33,150.33064161]
[1753505045071,1e-08,186.34,186.33,149.36631847]
[1753505047763,0.70000001,186.34,186.33,109.61150627]
[1753505047974,0.70000001,186.34,186.33,146.93150627]
[1753505048544,1e-08,186.34,186.33,146.93150627]
[1753505050159,1e-08,186.34,186.33,59.53150627]
[1753505053871,1e-08,186.34,186.33,60.22150627]
[1753505054091,1e-08,186.34,186.33,63.1730007]
[1753505055882,1e-08,186.34,186.33,150.5730007]
[1753505056082,1e-08,186.34,186.33,150.03631847]
[1753505085512,1e-08,186.34,186.33,149.34631847]
[1753505091732,1e-08,186.34,186.33,150.02631847]
[1753505091896,1e-08,186.34,186.33,147.61150627]
[1753505092096,1e-08,186.34,186.33,150.02631847]
[1753505094425,1e-08,186.34,186.33,147.61150627]
[1753505094718,1e-08,186.34,186.33,150.02631847]
[1753505096622,1e-08,186.34,186.33,150.31064161]
[1753505100110,1e-08,186.34,186.33,147.89582941]
[1753505100317,1e-08,186.34,186.33,149.32631847]
[1753505100737,1e-08,186.34,186.33,146.91150627]
[1753505101210,0.68000001,186.34,186.33,146.91150627]
[1753505103301,0.68000001,186.34,186.33,59.51150627]
[1753505106538,0.68000001,186.34,186.33,54.14468397]
[1753505106745,0.68000001,186.34,186.33,59.51150627]
[1753505108321,1e-08,186.34,186.33,59.51150627]
[1753505119947,1e-08,186.34,186.33,60.22150627]
[1753505124952,1e-08,186.34,186.33,59.51150627]
[1753505125132,0.71000001,186.34,186.33,54.14468397]
[1753505128455,1e-08,186.34,186.33,54.14468397]
[1753505130636,1e-08,186.34,186.33,59.51150627]
[1753505131043,1e-08,186.34,186.33,54.14468397]
[1753505131949,1e-08,186.34,186.33,54.85468397]
[1753505135861,0.72000001,186.34,186.33,37.36]
[1753505136043,3.13481221,186.34,186.33,37.36]
[1753505138763,2.41481221,186.34,186.33,37.36]
[1753505139951,3.13481221,186.34,186.33,37.36]
[1753505140349,2.41481221,186.34,186.33,37.36]
[1753505145173,2.41481221,186.34,186.33,38.03]
[1753505148872,2.41481221,186.34,186.33,37.36]
[1753505150753,2.41481221,186.34,186.33,38.03]
[1753505153571,2.41481221,186.34,186.33,43.3968223]
[1753505153572,1e-08,186.34,186.33,43.3968223]
[1753505159365,1e-08,186.34,186.33,60.18150627]
[1753505167990,3.07481221,186.34,186.33,37.32]
[1753505168189,2.41481221,186.34,186.33,37.32]
[1753505168606,3.07481221,186.34,186.33,37.32]
[1753505169103,1e-08,186.34,186.33,37.32]
[1753505169689,1e-08,186.34,186.33,38.03]
[1753505172598,1e-08,186.34,186.33,37.32]
[1753505176685,1e-08,186.34,186.33,38.03]
[1753505178514,1e-08,186.34,186.33,37.32]
[1753505180708,1e-08,186.34,186.33,38.03]
[1753505184920,1e-08,186.34,186.33,37.32]
[1753505185602,1e-08,186.34,186.33,38.03]
[1753505191720,1e-08,186.34,186.33,60.18150627]
[1753505196296,1e-08,186.34,186.33,37.32]
[1753505198019,1e-08,186.34,186.33,43.3768223]
[1753505200038,1e-08,186.34,186.33,60.16150627]
[1753505201608,1e-08,186.34,186.33,64.7476007]
[1753505204331,1e-08,186.36,186.35,49.11798397]
[1753505204547,1e-08,186.36,186.35,89.59374394]
[1753505204744,1e-08,186.36,186.35,90.28374394]
[1753505205248,1e-08,186.36,186.35,95.64999025]
[1753505209744,1e-08,186.36,186.35,183.04999025]
[1753505210041,1e-08,186.36,186.35,182.51336562]
[1753505213956,1e-08,186.36,186.35,137.96574248]
[1753505214146,0.66000001,186.36,186.35,172.77093028]
[1753505215463,1e-08,186.36,186.35,172.77093028]
[1753505215662,1e-08,186.36,186.35,85.37093028]
[1753505216273,1e-08,186.36,186.35,89.29669025]
[1753505218769,1e-08,186.36,186.35,90.65087471]
[1753505221542,1e-08,186.36,186.35,178.05087471]
[1753505221751,1e-08,186.36,186.35,177.51425008]
[1753505222161,1e-08,186.36,186.35,177.57425008]
[1753505230670,1e-08,186.36,186.35,176.88425008]
[1753505231783,0.70000001,186.36,186.35,176.59992694]
[1753505231993,0.70000001,186.36,186.35,172.83093028]
[1753505232856,0.70000001,186.36,186.35,146.83093028]
[1753505233053,0.70000001,186.36,186.35,109.61093028]
[1753505233289,0.70000001,186.36,186.35,22.21093028]
[1753505233453,0.70000001,186.36,186.35,59.43093028]
[1753505239574,1e-08,186.36,186.35,59.43093028]
[1753505250187,1e-08,186.36,186.35,42.64624631]
[1753505250485,0.70000001,186.36,186.35,37.28]
[1753505250688,3.11328147,186.36,186.35,37.28]
[1753505251695,0.70000001,186.36,186.35,37.28]
[1753505257174,1e-08,186.36,186.35,37.28]
[1753505257371,1e-08,186.36,186.35,42.64624631]
[1753505258487,1e-08,186.36,186.35,43.34624631]
[1753505259411,1e-08,186.36,186.35,42.64624631]
[1753505259698,1e-08,186.36,186.35,43.34624631]
[1753505259902,1e-08,186.36,186.35,60.13093028]
[1753505260220,1e-08,186.36,186.35,63.36515951]
[1753505262799,1e-08,186.36,186.35,64.71987549]
[1753505271604,1e-08,186.36,186.35,60.66755491]
[1753505271803,1e-08,186.36,186.35,146.83093028]
[1753505272185,1e-08,186.36,186.35,42.64624631]
[1753505272390,0.71000001,186.36,186.35,42.64624631]
[1753505273807,0.71000001,186.36,186.35,37.28]
[1753505276198,4.47799745,186.36,186.35,37.28]
[1753505276510,0.71000001,186.36,186.35,37.28]
[1753505280398,1e-08,186.36,186.35,37.28]
[1753505280894,0.71000001,186.36,186.35,37.28]
[1753505281304,1e-08,186.36,186.35,37.28]
[1753505289404,1e-08,186.36,186.35,37.95]
[1753505290029,1e-08,186.36,186.35,43.31624631]
[1753505296439,1e-08,186.36,186.35,37.95]
[1753505297813,3.11385435,186.36,186.35,0.06]
[1753505298011,29.11385435,186.36,186.35,0.06]
[1753505299014,29.11385435,186.36,186.35,37.28]
[1753505299015,26.00000001,186.36,186.35,37.28]
[1753505299330,28.65385435,186.36,186.35,37.28]
[1753505300734,26.24000001,186.36,186.35,37.28]
[1753505300945,30.01243661,186.36,186.35,37.28]
[1753505304224,3.77243661,186.36,186.35,37.28]
[1753505305135,4.47243661,186.36,186.35,37.28]
[1753505306325,9.83839497,186.36,186.35,37.28]
[1753505307537,9.83839497,186.36,186.35,0.06]
[1753505309809,39.84980344,186.36,186.35,0.06]
[1753505311236,39.84986287,186.36,186.35,0.06]
[1753505312328,35.83839497,186.36,186.35,0.06]
[1753505323051,35.13839497,186.36,186.35,0.06]
[1753505323754,35.79839497,186.36,186.35,0.06]
[1753505324856,35.13839497,186.36,186.35,0.06]
[1753505325228,35.13839497,186.36,186.35,0.76]
[1753505325643,35.13839497,186.36,186.35,0.06]
[1753505327266,35.13839497,186.36,186.35,0.76]
[1753505327955,35.13839497,186.36,186.35,0.06]
[1753505328860,33.78081622,186.36,186.35,0.06]
[1753505331258,33.78081622,186.36,186.35,0.76]
[1753505332462,31.36595837,186.36,186.35,0.76]
[1753505332662,33.78081622,186.36,186.35,0.06]
[1753505332870,34.44081622,186.36,186.35,0.06]
[1753505333241,33.78081622,186.36,186.35,0.06]
[1753505335058,8.44081622,186.36,186.35,0.06]
[1753505335255,16.06339812,186.36,186.35,0.06]
[1753505336954,16.20555969,186.36,186.35,0.06]
[1753505338366,26.0,186.32,186.31,0.06]
[1753505338546,26.0,186.3,186.29,0.06]
[1753505338847,82.91687115,186.3,186.29,0.06]
[1753505339047,83.57687115,186.3,186.29,0.06]
[1753505339777,83.57877574,186.3,186.29,0.06]
[1753505340467,88.94646226,186.3,186.29,0.06]
[1753505340669,88.94646226,186.3,186.25,0.06]
[1753505340866,8.45125273,186.29,186.25,0.06]
[1753505341369,13.81922739,186.29,186.25,0.06]
[1753505342770,13.15922739,186.29,186.25,0.76]
[1753505343356,9.14553716,186.29,186.25,0.76]
[1753505343673,13.38634417,186.29,186.25,0.76]
[1753505344671,14.04634417,186.29,186.25,0.76]
[1753505345076,13.38634417,186.29,186.25,0.76]
[1753505346580,9.14553716,186.29,186.25,0.76]
[1753505346779,9.14553716,186.29,186.26,0.67]
[1753505347150,9.14553716,186.29,186.25,0.06]
[1753505347353,46.36553716,186.29,186.28,0.73]
[1753505347985,9.14553716,186.29,186.28,0.73]
[1753505351185,3.7775625,186.29,186.28,0.73]
[1753505352185,3.7775625,186.3,186.28,0.73]
[1753505352366,26.0,186.29,186.28,0.73]
[1753505352888,29.7775625,186.29,186.28,0.73]
[1753505353561,35.14553716,186.29,186.28,0.73]
[1753505353768,35.14553716,186.29,186.28,0.06]
[1753505354175,39.82207059,186.29,186.25,0.06]
[1753505354391,4.4475625,186.28,186.25,0.06]
[1753505354594,41.6875625,186.28,186.25,0.06]
[1753505354995,47.05582533,186.28,186.25,0.06]
[1753505358178,26.0,186.26,186.25,0.06]
[1753505358378,29.7775625,186.26,186.25,0.06]
[1753505359190,67.0175625,186.26,186.25,0.06]
[1753505359997,72.38640175,186.26,186.25,0.06]
[1753505360806,35.14640175,186.26,186.25,0.73]
[1753505362196,35.81640175,186.26,186.25,0.06]
[1753505362977,35.14640175,186.26,186.25,0.06]
[1753505364614,35.81640175,186.26,186.25,0.06]
[1753505366679,39.815986,186.26,186.25,0.06]
[1753505366880,35.81640175,186.26,186.25,0.06]
[1753505367492,35.14640175,186.26,186.25,0.06]
[1753505367691,35.14640175,186.26,186.25,0.73]
[1753505368414,35.14640175,186.26,186.25,0.06]
[1753505370510,35.81640175,186.26,186.25,0.06]
[1753505372584,39.8165987,186.26,186.25,0.06]
[1753505373287,43.41713468,186.26,186.25,0.06]
[1753505374410,43.41774064,186.26,186.25,0.06]
[1753505374595,43.41774064,186.26,186.25,1e-08]
[1753505374790,43.41774064,186.26,186.24,0.06]
[1753505374991,41.6875625,186.25,186.24,0.06]
[1753505375526,45.68871369,186.25,186.24,0.06]
[1753505376524,53.99082132,186.25,186.24,0.06]
[1753505377523,53.99082132,186.25,186.24,0.73]
[1753505378403,53.99082132,186.25,186.24,0.06]
[1753505379091,53.99082132,186.25,186.23,0.06]
[1753505379304,12.06169381,186.24,186.23,0.06]
[1753505380219,26.0,186.22,186.21,0.06]
[1753505380419,3.7775625,186.22,186.21,0.06]
[1753505381433,13.15668662,186.22,186.21,0.06]
[1753505381934,16.76472748,186.22,186.21,0.06]
[1753505382302,17.44472748,186.22,186.21,1e-08]
[1753505382618,21.22228998,186.22,186.21,1e-08]
[1753505382817,21.50661312,186.22,186.21,1e-08]
[1753505384034,20.82661312,186.22,186.21,1e-08]
[1753505384715,17.04905062,186.22,186.21,1e-08]
[1753505385216,26.0,186.2,186.19,1e-08]
[1753505385426,83.92561194,186.2,186.19,1e-08]
[1753505386652,83.86345037,186.2,186.19,0.67000001]
[1753505388103,83.86345037,186.2,186.19,1e-08]
[1753505388424,80.25551697,186.2,186.19,1e-08]
[1753505390123,80.25551697,186.2,186.19,0.67000001]
[1753505390529,80.25551697,186.2,186.19,1e-08]
[1753505391247,80.25551697,186.2,186.19,0.67000001]
[1753505392348,76.24569428,186.2,186.19,0.67000001]
[1753505394116,76.92569428,186.2,186.19,1e-08]
[1753505395323,94.35784668,186.2,186.15,0.67]
[1753505395535,3.7775625,186.16,186.15,0.67]
[1753505395721,3.7775625,186.16,186.13,6.1108]
[1753505395925,3.7775625,186.14,186.13,6.1108]
[1753505396315,3.7775625,186.14,186.13,6.7808]
[1753505411047,3.7775625,186.14,186.13,0.67]
[1753505414752,2.42035898,186.14,186.13,0.67]
[1753505417264,2.42035898,186.14,186.11,1.5956]
[1753505417265,2.42035898,186.14,186.11,2.2556]
[1753505417266,7.79274623,186.14,186.11,2.2556]
[1753505417435,2.42035898,186.12,186.11,0.72]
[1753505418133,29.13035898,186.12,186.11,0.06]
[1753505418341,28.42035898,186.12,186.11,0.06]
[1753505419034,33.79323669,186.12,186.11,0.06]
[1753505422063,34.39323669,186.12,186.11,0.06]
[1753505429266,39.12517348,186.12,186.11,0.06]
[1753505429466,38.41517348,186.12,186.11,0.06]
[1753505430468,34.39323669,186.12,186.11,0.06]
[1753505432550,35.10323669,186.12,186.11,0.06]
[1753505433770,34.39323669,186.12,186.11,0.06]
[1753505436765,42.70999042,186.12,186.11,0.06]
[1753505437155,42.71018532,186.12,186.11,0.06]
[1753505438170,42.03018532,186.12,186.11,0.06]
[1753505439380,38.41284267,186.12,186.11,0.06]
[1753505440856,39.09284267,186.12,186.11,0.06]
[1753505441781,38.41284267,186.12,186.11,0.06]
[1753505442963,38.41157777,186.12,186.11,0.06]
[1753505444059,34.39323669,186.12,186.11,0.06]
[1753505446710,38.41207431,186.12,186.11,0.06]
[1753505446884,34.39323669,186.12,186.11,0.06]
[1753505447067,38.41212661,186.12,186.11,0.06]
[1753505447267,39.09212661,186.12,186.11,0.06]
[1753505448093,42.70938993,186.12,186.11,0.06]
[1753505449990,42.02938993,186.12,186.11,0.06]
[1753505451178,42.70938993,186.12,186.11,0.06]
[1753505454697,79.98938993,186.12,186.11,0.06]
[1753505456809,79.98938993,186.12,186.09,0.2]
[1753505456810,106.73983296,186.12,186.09,0.2]
[1753505456993,106.73983296,186.12,186.05,0.06]
[1753505456994,16.78468397,186.06,186.05,1e-08]